Cogmind - Beta 10.2 @@@ ROGUE MODE // 2021.04.02 @ 21:22:55 // Halloween2020/ForbiddenLore Player: Valguris Result: Destroyed by H-55 Commando with Assault Rifle Performance ------------- Evolutions (1) 500 Regions Visited (5) 1000 Robots Destroyed (68) 340 Value Destroyed (1382) 1382 Prototype IDs (28) 560 Alien Tech Used (0) 0 Bonus (312) 312 TOTAL SCORE: 4094 Bonus ------- High Alert Combat Kills 12 Aligned with FarCom 300 Cogmind --------- Core Integrity 0/400 Matter 217/300 Energy 86/100 System Corruption 10% Temperature Cool (0) Movement Treading (200) Ox2 Location -9/Exiles Parts ------- > --- POWER (1) -------- (None) > --- PROPULSION (2) --- Light Treads Light Treads > --- UTILITY (4) ------ Humpback Hardened Light Armor Plating > --- WEAPON (2) ------- AWS/Thermal > --- INVENTORY (24) --- Heat Sink Large Storage Unit Large Storage Unit Humpback Modified TNC Shock Rifle Shock Rifle Shock Rifle Shock Rifle Latent Energy Streamer Heavy Assault Rifle Rocket Launcher Improved Grenade Launcher Mining Laser Heavy Explosive Trap Peak State ------------ > --- POWER ------------ Improved Ion Engine > --- PROPULSION ------- Light Treads > --- UTILITY ---------- Humpback Hardened Light Armor Plating > --- WEAPON ----------- AWS/Thermal > --- INVENTORY -------- Light Treads Heat Sink Large Storage Unit Large Storage Unit Humpback Modified TNC Shock Rifle Shock Rifle Shock Rifle Shock Rifle Latent Energy Streamer Heavy Assault Rifle Rocket Launcher Improved Grenade Launcher Mining Laser Heavy Explosive Trap [Rating: 27] Favorites ----------- Power Ion Engine Engine Ion Engine Power Core Light Nuclear Core Propulsion Light Treads Treads Light Treads Leg Aluminum Leg Wheel Wheel Utility Large Storage Unit Device Shield Generator Storage Large Storage Unit Processor Targeting Computer Protection Medium Armor Plating Weapon Heavy Assault Rifle Energy Gun Shock Rifle Energy Cannon Beam Cannon Ballistic Gun Heavy Assault Rifle Launcher Improved Grenade Launcher Special Weapon Mining Laser Build | -11 -10 -10 -9 -9 -9 ------- Run | Scr Mat Min Mat Min Exi Slots Evolved 2 | . . . 2 . . Power . | . . . . . . Propulsion . | . . . . . . Utility 2 | . . . 2 . . Weapon . | . . . . . . Parts Attached 69 | 6 11 6 22 11 13 Power 8 | 1 1 1 2 2 1 Engine 7 | 1 1 1 1 2 1 Core 1 | . . . 1 . . Reactor . | . . . . . . Propulsion 13 | 2 . 1 5 1 4 Treads 10 | 2 . 1 3 1 3 Leg 2 | . . . 2 . . Wheel 1 | . . . . . 1 Hover . | . . . . . . Flight . | . . . . . . Utility 19 | 1 4 . 5 2 7 Device 7 | . 1 . 4 . 2 Storage 4 | 1 2 . . . 1 Processor 1 | . . . . 1 . Hackware . | . . . . . . Protection 7 | . 1 . 1 1 4 Artifact . | . . . . . . Weapon 29 | 2 6 4 10 6 1 Energy Gun 9 | 1 1 . 5 1 1 Energy Cannon 3 | . 2 1 . . . Ballistic Gun 11 | 1 2 2 3 3 . Ballistic Cannon . | . . . . . . Launcher 5 | . . 1 2 2 . Special Weapon 1 | . 1 . . . . Impact Weapon . | . . . . . . Slashing Weapon . | . . . . . . Piercing Weapon . | . . . . . . Special Melee Weapon . | . . . . . . Unidentified Prototypes . | . . . . . . Parts Lost 30 | . 3 4 10 3 10 Power 7 | . 1 1 3 . 2 Propulsion 7 | . . 1 2 1 3 Utility 7 | . 1 . 2 1 3 Weapon 9 | . 1 2 3 1 2 Highest Loss Streak 10 | . 2 2 4 3 10 Average Slot Usage (%) 95 | . 98 98 94 96 93 Engine 10 | . 14 13 9 8 10 Treads 22 | . 28 28 16 22 21 Leg 1 | . . . 5 . . Device 4 | . 3 . 9 2 4 Storage 20 | . 19 28 22 22 17 Processor 5 | . . . . 10 10 Protection 5 | . 3 . 6 8 6 Energy Gun 1 | . 1 . 7 . . Energy Cannon 2 | . 1 15 3 . . Ballistic Gun 18 | . 25 10 10 18 21 Naked Turns . | . . . . . . Heaviest Build 107 | 9 43 43 46 51 107 Greatest Support 43 | 40 40 40 40 40 43 Greatest Overweight (x) 9 | . 2 1 2 1 9 Average Overweight (x) 1 | . . 1 1 . 1 Largest Inventory Capacity 30 | 6 16 16 16 16 30 Average Capacity 15 | 5 11 16 16 16 19 Most Carried 24 | 6 16 16 16 16 24 Average Carried 15 | 3 10 14 14 15 19 Final Capacity 24 | 6 16 16 16 16 24 Final Carried 16 | 6 16 15 16 16 16 Class Distribution -------------------- 61% | Scavenger-Mutant 35% | Mutant Dominant Class ---------------- Mutant | -10/Materials Mutant | -10/Mines Scavenger-Mutant | -9/Materials Scavenger-Mutant | -9/Mines Scavenger-Mutant | -9/Exiles Resources | -11 -10 -10 -9 -9 -9 ----------- Run | Scr Mat Min Mat Min Exi Matter Collected 1260 | 242 329 140 288 257 4 Remotely . | . . . . . . Salvage Created 1922 | . 550 200 806 366 . Parts 124 | . 42 11 51 20 . Haulers Intercepted 1 | . 1 . . . . Recyclers Shooed 4 | . . . 2 2 . Parts Field Recycled . | . . . . . . Retrieved Matter . | . . . . . . Parts Self-Destructed . | . . . . . . Prevented . | . . . . . . Kills | -11 -10 -10 -9 -9 -9 ------- Run | Scr Mat Min Mat Min Exi Combat Hostiles Destroyed 52 | . 13 7 21 11 . Guns 26 | . 13 2 6 5 . Cannons 10 | . . 2 8 . . AOE 16 | . . 3 7 6 . Classes Destroyed 9 | . 5 . 2 2 . Worker 5 | . 2 . 2 1 . Tunneler 1 | . . . . 1 . Hauler 1 | . 1 . . . . Recycler 5 | . . . 3 2 . Watcher 4 | . 2 . 2 . . Swarmer 27 | . 3 3 14 7 . Grunt 18 | . 10 4 1 3 . Duelist 1 | . . . . 1 . Sentry 6 | . . . 6 . . Best Kill Streak 12 | . 4 3 12 4 . Combat Bots Only 6 | . 4 3 6 4 . Max Kills in Single Turn 3 | . 1 2 3 2 . Gunslinging . | . . . . . . Exploded 3 | . . 2 3 2 . Melee . | . . . . . . Uniques/NPCs Destroyed . | . . . . . . Combat | -11 -10 -10 -9 -9 -9 -------- Run | Scr Mat Min Mat Min Exi Damage Taken 3664 | . 693 405 782 296 1488 Core 593 | . 131 51 145 28 238 Absorbed by Shields 187 | . . . 108 15 64 Core Remaining (%) 63 | 100 . 27 . . . Volleys Fired 161 | . 68 23 47 22 1 Largest 2 | . 2 2 2 2 1 Hottest 120 | . 100 120 100 50 23 Shots Fired 310 | . 133 44 88 39 6 Gun 252 | . 132 18 61 35 6 Cannon 48 | . . 24 24 . . Launcher 9 | . . 2 3 4 . Special 1 | . 1 . . . . Kinetic 208 | . 126 18 29 34 1 Thermal 74 | . 7 24 38 . 5 Explosive 9 | . . 2 3 4 . Electromagnetic 19 | . . . 18 1 . Robot Hit Streak 23 | . 23 11 13 15 7 Robot Miss Streak 3 | . 3 2 3 2 1 Penetration Max . | . . . . . . Secondary Targets . | . . . . . . Autonomous 5 | . . . . . 5 Shots Hit Robots 218 | . 93 34 56 31 4 Core Hits 99 | . 32 12 35 20 . Critical Hits 2 | . 1 1 . . . Critical Kills . | . . . . . . Critical Parts Destroyed 2 | . 1 1 . . . Melee Attacks . | . . . . . . Impact . | . . . . . . Slashing . | . . . . . . Piercing . | . . . . . . Sneak Attacks . | . . . . . . Combat Hostiles . | . . . . . . Follow-up Attacks . | . . . . . . Damage Inflicted 4186 | . 963 632 1456 1017 118 Guns 2239 | . 898 137 663 423 118 Cannons 655 | . . 331 324 . . Explosions 1227 | . . 164 469 594 . Melee . | . . . . . . Ramming 65 | . 65 . . . . Kinetic 1691 | . 807 137 324 423 . Thermal 1249 | . 91 331 533 176 118 Explosive 944 | . . 164 362 418 . Electromagnetic 237 | . . . 237 . . Impact . | . . . . . . Slashing . | . . . . . . Piercing . | . . . . . . Highest Corruption 10 | . . . . . 10 Average Corruption 5 | . . . . . 5 Corruption Purged . | . . . . . . Overload Shots . | . . . . . . Overflow Damage 55 | . . 15 . 40 . Projectiles 7 | . . 7 . . . Explosions 48 | . . 8 . 40 . Melee . | . . . . . . Knockbacks 1 | . 1 . . . . Impact 1 | . 1 . . . . Kinetic . | . . . . . . Secondary . | . . . . . . Self-Inflicted Damage 202 | . . 66 10 126 . Shots 6 | . . 2 1 3 . Rammed 12 | . 12 . . . . Targets Rammed 13 | . 13 . . . . Kicked . | . . . . . . Crushed 1 | . 1 . . . . Highest Temperature 325 | . 24 325 78 10 1 Average Temperature 60 | . 9 127 15 3 1 Received Heat Transfer 991 | . 339 186 182 70 214 Effects 1 | . . 1 . . . Shutdowns 1 | . . 1 . . . Siege Activations . | . . . . . . Robots Corrupted . | . . . . . . Combat Hostiles . | . . . . . . Parts Fried 1 | . . . 1 . . Impact Corruptions . | . . . . . . Robots Melted . | . . . . . . Combat Hostiles . | . . . . . . Parts Melted 3 | . . 1 2 . . Heat Transferred 2364 | . 222 703 1091 200 148 Parts Sabotaged . | . . . . . . Parts Stolen . | . . . . . . Parts Stripped . | . . . . . . Power Chain Reactions 2 | . . . 2 . . Missiles Intercepted . | . . . . . . Alert | -11 -10 -10 -9 -9 -9 ------- Run | Scr Mat Min Mat Min Exi Peak Influence 491 | . 236 197 491 275 . Initial 130 | . . 37 76 130 . Average 189 | . 136 161 310 164 . Maximum Alert Level 2 | . 1 . 2 1 . Low Security (%) 59 | 100 66 100 15 73 . Level 1 34 | . 33 . 62 26 . Level 2 5 | . . . 22 . . Level 3 . | . . . . . . Level 4 . | . . . . . . Level 5 . | . . . . . . High Security . | . . . . . . Max Security . | . . . . . . Squads Dispatched 4 | . 3 . 1 . . Investigation 2 | . 2 . . . . Extermination . | . . . . . . Reinforcement 2 | . 1 . 1 . . Assault . | . . . . . . Garrison . | . . . . . . Intercept . | . . . . . . Construction Impeded . | . . . . . . Haulers Reinforced . | . . . . . . Stealth | -11 -10 -10 -9 -9 -9 --------- Run | Scr Mat Min Mat Min Exi Distress Signals 3 | . 3 . . . . Communications Jammed . | . . . . . . Distress Signals . | . . . . . . Times Spotted 89 | . 27 8 27 9 18 Peak Tracking Total 17 | . 5 3 6 4 17 Tactical Retreats 4 | . 2 1 . 1 . Traps | -11 -10 -10 -9 -9 -9 ------- Run | Scr Mat Min Mat Min Exi Traps Triggered 2 | . 2 . . . . Indirectly . | . . . . . . Trap Hack Attempts . | . . . . . . Triggered . | . . . . . . Disarmed . | . . . . . . Reprogrammed . | . . . . . . Reused . | . . . . . . Traps Extracted . | . . . . . . Installed 3 | . . . . 3 . Triggered . | . . . . . . Machines | -11 -10 -10 -9 -9 -9 ---------- Run | Scr Mat Min Mat Min Exi Machines Disabled 1 | . . . . 1 . Max in Single Turn 1 | . . . . 1 . Machines Sabotaged . | . . . . . . Garrisons Compromised . | . . . . . . Overloaded Fab Kills . | . . . . . . Fab Network Shutdowns . | . . . . . . Hacking | -11 -10 -10 -9 -9 -9 --------- Run | Scr Mat Min Mat Min Exi Machines Accessed 11 | . 3 . 3 . 5 Terminals 5 | . 2 . 3 . . Fabricators . | . . . . . . Repair Stations 1 | . 1 . . . . Recycling Units . | . . . . . . Scanalyzers . | . . . . . . Garrison Access . | . . . . . . Total Hacks 70 | . 10 . 10 . 50 Successful 59 | . 4 . 5 . 50 Failed 10 | . 5 . 5 . . Catastrophic 1 | . 1 . . . . Database Lockouts 1 | . 1 . . . . Manual 16 | . 7 . 8 . 1 Terminals 17 | . 7 . 10 . . Fabricators . | . . . . . . Repair Stations 3 | . 3 . . . . Recycling Units . | . . . . . . Scanalyzers . | . . . . . . Garrison Access . | . . . . . . Terminal Hacks 56 | . 3 . 3 . 50 Record 49 | . . . . . 49 Robot Analysis 2 | . 1 . 1 . . Prototype ID Bank 2 | . . . 2 . . Patrol Status 1 | . 1 . . . . Hauler Manifests 1 | . 1 . . . . EX-Prototype ID Bank 1 | . . . . . 1 Fabricator Hacks . | . . . . . . Repair Station Hacks 1 | . 1 . . . . Scan Component 1 | . 1 . . . . Recycling Unit Hacks . | . . . . . . Scanalyzer . | . . . . . . Garrison Access Hacks . | . . . . . . Unauthorized Hacks 2 | . . . 2 . . Terminals 2 | . . . 2 . . Botnet 2 | . . . 2 . . Fabricators . | . . . . . . Repair Stations . | . . . . . . Recycling Units . | . . . . . . Scanalyzers . | . . . . . . Garrison Access . | . . . . . . Data Cores Recovered . | . . . . . . Used . | . . . . . . Hacking Detections 6 | . 3 . 3 . . Full Trace Events . | . . . . . . Feedback Events . | . . . . . . Feedback Blocked . | . . . . . . Robot Schematics Acquired . | . . . . . . Robots Built . | . . . . . . Matter . | . . . . . . Time . | . . . . . . Total Robot Build Rating . | . . . . . . Part Schematics Acquired . | . . . . . . Parts Built . | . . . . . . Matter . | . . . . . . Time . | . . . . . . Total Part Build Rating . | . . . . . . Parts Repaired . | . . . . . . Time . | . . . . . . Parts Recycled . | . . . . . . Recycled Matter . | . . . . . . Retrieved Matter . | . . . . . . Retrieved Components . | . . . . . . Parts Scanalyzed . | . . . . . . Part Schematics Acquired . | . . . . . . Parts Damaged . | . . . . . . Bothacking | -11 -10 -10 -9 -9 -9 ------------ Run | Scr Mat Min Mat Min Exi Used RIF Installer . | . . . . . . Robots Hacked . | . . . . . . Non-combat . | . . . . . . Combat . | . . . . . . Robot Hacks Applied . | . . . . . . Relay Couplers Released . | . . . . . . Robots Rewired . | . . . . . . Allies Hacked . | . . . . . . Hacks Repelled . | . . . . . . Allies | -11 -10 -10 -9 -9 -9 -------- Run | Scr Mat Min Mat Min Exi Total Allies . | . . . . . . Largest Group . | . . . . . . Highest-Rated Group . | . . . . . . Highest-Rated Ally . | . . . . . . Total Orders . | . . . . . . Ally Attacks . | . . . . . . Total Damage . | . . . . . . Kills . | . . . . . . Allies Corrupted . | . . . . . . Allies Melted . | . . . . . . Intel | -11 -10 -10 -9 -9 -9 ------- Run | Scr Mat Min Mat Min Exi Robot Analysis Total 2 | . 1 . 1 . . Derelict Logs Recovered 1 | . . . . 1 . Drone Launches . | . . . . . . Drone Recoveries . | . . . . . . Exploration | -11 -10 -10 -9 -9 -9 ------------- Run | Scr Mat Min Mat Min Exi Turns Passed 4580 | 75 942 312 828 1110 1313 Spaces Moved 2147 | 41 377 121 353 567 688 Core 4 | 4 . . . . . Treads 2032 | 37 377 121 290 567 640 Legs 63 | . . . 63 . . Wheels 48 | . . . . . 48 Hover . | . . . . . . Flight . | . . . . . . Fastest Speed 50 | 50 160 180 150 160 160 Average Speed 178 | 149 169 180 178 175 185 Slowest Speed 240 | 160 200 180 180 180 240 Overloaded Moves . | . . . . . . Propulsion Burnouts . | . . . . . . Robots Hopped . | . . . . . . Cave-ins Triggered . | . . . . . . Exploration Rate (%) 51 | 4 49 37 30 97 93 Regions Visited 5 Branch Regions 3 Pre-discovered Areas 1 | . . . . . 1 Known Exits Taken . | . . . . . . Unknown Exits Taken 5 | 1 1 1 1 1 . Scrap Searched 2 | . . . . 2 . Spaces Dug 20 | . 1 . 19 . . Terrain Destroyed 94 | . 1 12 30 50 1 Melee . | . . . . . . Projectile 2 | . 1 . . . 1 AOE 92 | . . 12 30 50 . Terrain Rammed . | . . . . . . Walls Destroyed . | . . . . . . Machines Disabled . | . . . . . . Actions | -11 -10 -10 -9 -9 -9 --------- Run | Scr Mat Min Mat Min Exi Total 2599 | 52 547 171 467 640 722 Wait 108 | . 55 19 8 25 1 Move 2142 | 40 376 120 352 566 688 Hop . | . . . . . . Pick Up 70 | 6 18 3 22 7 14 Fast Attach 15 | 6 1 . 4 3 1 Attach 27 | . 3 4 9 3 8 Detach 2 | . . . 1 . 1 Swap 27 | . 7 2 9 5 4 Drop 31 | . 6 . 15 6 4 Fire 161 | . 68 23 47 22 1 Melee . | . . . . . . Ram . | . . . . . . Kick . | . . . . . . Crush 13 | . 13 . . . . Escape Stasis . | . . . . . . Rewire . | . . . . . . Trap 3 | . . . . 3 . Miscellaneous . | . . . . . . Route ------- -11/Scrapyard -10/Materials (discovered 2 exits: *Mat / [*Min]) -10/Mines -9/Materials -9/Mines (discovered 3 exits: [*Mat x2] / *Exi) -9/Exiles (discovered 2 exits: [*Min x2]) History --------- Turn | Location | Event 5 | -11/Scrapyard | Discovered new exit (range 15) 76 | -11/Scrapyard | Entered Materials 162 | -10/Materials | Central database locked down 191 | -10/Materials | Discovered new exit (range 15) 315 | -10/Materials | Build established: Mutant 579 | -10/Materials | Discovered new exit (range 16) 603 | -10/Materials | Core integrity fell below 50% 1018 | -10/Materials | Entered Mines 1040 | -10/Mines | Met a Derelict bent on vengeance 1321 | -10/Mines | Discovered new exit (range 6) 1330 | -10/Mines | Entered Materials 1330 | -9/Materials | Evolved 2 slots: Utility x2 1477 | -9/Materials | Lost 4 parts (1p2n1w) 1643 | -9/Materials | Lost 4 parts (1p2u1w) 1931 | -9/Materials | Build established: Scavenger-Mutant 2120 | -9/Materials | Discovered new exit (range 10) 2158 | -9/Materials | Entered Mines 2195 | -9/Mines | Lost 3 parts (1p1u1w) 2281 | -9/Mines | Found a hidden stash of uninstalled traps 2385 | -9/Mines | Discovered new exit (range 10) 3002 | -9/Mines | Discovered new exit (range 9) 3259 | -9/Mines | Deemed a non-threat by the Exiles lab entrance 3259 | -9/Mines | Discovered new exit (range 5) 3268 | -9/Mines | Entered Exiles 3295 | -9/Exiles | Discovered new exit (range 14) 3357 | -9/Exiles | Met 8R-AWN 3387 | -9/Exiles | Met EX-HEX 3481 | -9/Exiles | Met EX-DEC 3527 | -9/Exiles | Visited The Gauntlet 3760 | -9/Exiles | Learned location of Zion (-6) 3805 | -9/Exiles | Met EX-BIN 4123 | -9/Exiles | Discovered new exit (range 10) 4265 | -9/Exiles | Aligned with FarCom system 4267 | -9/Exiles | Given EX-Vault access code 4313 | -9/Exiles | Opened EX-Vault 4359 | -9/Exiles | Warned to stay clear of 0b10 Research branches 4394 | -9/Exiles | Exiles lab attacked by MAIN.C 4479 | -9/Exiles | Found Modified TNC 4483 | -9/Exiles | Found Latent Energy Streamer 4490 | -9/Exiles | Found AWS/Thermal 4554 | -9/Exiles | Core integrity fell below 50% 4572 | -9/Exiles | Core integrity fell below 20% 4579 | -9/Exiles | System corruption reached 10% 4581 | -9/Exiles | Destroyed by H-55 Commando with Assault Rifle Last Messages --------------- 04557_ Slug penetrates Wall. 04558_ Penetrated by Slug. 04558_ Hvy. Assault Rifle destroyed. 04560_ Penetrated by Slug. 04563_ Shield Generator destroyed. 04565_ Slug penetrates Machine. 04567_ Machine disabled. 04570_ Targeting Computer destroyed. 04573_ Penetrated by Slug. 04574_ Machine disabled. 04574_ Imp. Treads destroyed. 04575_ G-34 Mercenary destroyed. 04575_ Penetrated by Slug. 04575_ Med. Armor Plating destroyed. 04575_ Lgt. Treads destroyed. 04576_ Slug penetrates L-31 Rogue. 04577_ P-60 Hacker resets L-31 Rogue, system corruption cleaned. 04578_ Imp. Ion Engine destroyed. 04580_ Destroyed Katana. 04581_ Penetrated by Slug. Map ----- +----------------------------------------------------+ | ?????????????????????????#""X" #?????????? | | ?????????????????????????#" #?????????? | | ?????????????????????????#" ## #?????????? | | ?????????????????????????#""""""## #?######### | | ?????????????????????????##"###### #?#"""""""# | | ????????????????????????? "?????# #?#"""""""# | | ????????????????????????"""??????# #?#"""""""# | | ????????????????????????"""?????## ###"" """"# | | #######?????????????????????????#" """"# | | #! "#?????????????????????????#" """# | | # "#?????????????????????????#" """# | | # "#?????????????????????????#" """# | | # ""#???????????#######???????#" """# | | " ""#??????????# """#???????#" """# | | " ""#??????????#"" """#???????## """" | | " ###??????????#"" #????????# """# | | #????????????#"" #????????# "X" """" | | ##???????????#"" "#????????# """ # | | "#???????????# ""#????????#" """""""""# | | ###?????????#"" ""#???????## ########### | | ##????????### ###??????## #?????????? | | #"" ######???### ###?###### "#????????? | | ##" """#####X# #"### """" ##????????? | | ?#" """" b g ##????###? | | ?#"# " " g #####"""" | | ?#### @ l h " "" | | ????### g= "" | | ??????### p%!g " | | ????????## g | | ?????????## h | | ??????????##" * | | ???????????#""" [%= """"" h | | ??????????##" ! ######"" | | ??????????#"" ""##?????####""" | | ?????????##"" """##??????????#""" | | ?????????#""" ppg""##???????????#"""" | | ?????????#""" h""#???????????##"" | | ?????????#"" ########??####"""" | | ?????????#""" ## ####""" | | ?????????#"" """" | | ?????????##"" % | | ??????????#"""" | | ??????????## " | | ???????????#" " "" " | | ???????????#"""" ""## ##""" " " "" | | ???????????#"" ""#### ######""" """ | | ???????????#" """"##??# #????###""""# | | ???????????#""" """#??## ####???###### | | ???????????## ""##??#! "!#????????? | | ????????????#"" """##???#" !#????????? | +----------------------------------------------------+ Best States ------------- Heat Dissipation 52 Energy Generation 14 Energy Capacity 265 Matter Stores 300 Matter Capacity 300 Sight Range 16 Terrain Scan Density 10 Armor Coverage 225 Evasion (%) 40 Targeting Accuracy 5 Recoil Reduction 2 Item Schematics ----------------- None Robot Schematics ------------------ None Fabricated ------------ Nothing Alien Tech Used ----------------- None Achievements -------------- None Challenges ------------ None Game ------ Seed AluminumChargeSlayer Manual? 0 Play Time 00:46:49 Cumulative 1283.9 hours Start 2021.04.02 @ 20:16:52 End 2021.04.02 @ 21:22:55 Sessions 1 Manual Loads 0 Difficulty Rogue Special Mode Halloween2020/ForbiddenLore Game No. 414 Rogue 414 Adventurer 0 Explorer 0 Win Type - Total 260 Types 215/7/15/4/3/2/13/0/1 Lore% 99 Gallery% 98 Achievement% 94 Wizard Run 0 Options --------- ASCII 0 Keyboard 0 Movement Numpad Keybinds 0 Fullscreen 0 Font 14/Terminus Map View 76x50 Tactical HUD 1 Map Filters NONE Filters NONE Steam 1 RUN: 3ab22a15-6362-4a65-aff9-297dccf82ab8